[Event "FIDE World Cup O12-A 2024"]
[Site "Batumi"]
[Date "2024.06.28"]
[Round "6.7"]
[White "Sobirov, Afruzbek"]
[Black "Diasamidze, Rati"]
[Result "1-0"]
[ECO "D00"]
[WhiteElo "1789"]
[BlackElo "1646"]
[Annotator "NA RC"]
[PlyCount "77"]
[EventDate "2024.06.23"]
[EventType "swiss"]
[EventCountry "GEO"]
[SourceTitle "playchess.com"]
[Source "ChessBase"]
[SourceQuality "1"]
[TimeControl "5400+30"]

1. d4 {[%emt 0:00:03]} Nf6 {[%emt 0:00:04]} 2. Nc3 {[%emt 0:00:05]} d5 {[%emt 0:00:08]} 3. Bf4 {[%emt 0:00:06]} a6 {[%emt 0:00:11]} 4. e3 {[%emt 0:00:06]} e6 {[%emt 0:00:13]} 5. g4 {[%emt 0:00:10]} Bb4 {[%emt 0:01:11]} 6. Nge2 {[%emt 0:00:45]} O-O {[%emt 0:04:35]} 7. a3 {[%emt 0:05:23]} Be7 {[%emt 0:01:02]} 8. g5 {[%emt 0:10:09]} Nfd7 {[%emt 0:01:21]} 9. h4 {[%emt 0:00:17]} c5 {[%emt 0:02:33]} 10. Bh3 {[%emt 0:13:41]} cxd4 {[%emt 0:09:26]} 11. exd4 {[%emt 0:00:10]} Nc6 {[%emt 0:04:57]} 12. Qd3 {[%emt 0:04:19]} b5 {[%emt 0:08:55]} 13. Qg3 {[%emt 0:06:02]} Ra7 {[%emt 0:09:11]} 14. h5 {[%emt 0:08:04]} Nb6 {[%emt 0:09:55]} 15. g6 {[%emt 0:08:25]} fxg6 {[%emt 0:04:31]} 16. hxg6 {[%emt 0:00:09]} h6 {[%emt 0:01:16]} 17. Nd1 {[%emt 0:06:56]} Bh4 {[%emt 0:05:28]} 18. Bxe6+ {[%emt 0:02:44]} Bxe6 {[%emt 0:01:11]} 19. Rxh4 {[%emt 0:00:09]} Ne7 {[%emt 0:11:02]} 20. Ne3 {[%emt 0:03:49]} Nf5 {[%emt 0:07:49]} 21. Nxf5 {[%emt 0:00:42]} Bxf5 {[%emt 0:00:18]} 22. Be5 {[%emt 0:01:17]} Nc4 {[%emt 0:03:19]} 23. b3 {[%emt 0:01:53]} Nxe5 {[%emt 0:01:29]} 24. dxe5 {[%emt 0:00:09]} Re7 {[%emt 0:04:20]} 25. Nd4 {[%emt 0:00:24]} Qc7 {[%emt 0:04:47]} 26. f4 {[%emt 0:00:34]} Be4 {[%emt 0:01:46]} 27. O-O-O {[%emt 0:04:52]} Rc8 {[%emt 0:01:08]} 28. Rh2 {[%emt 0:00:14]} Qc5 {[%emt 0:00:58]} 29. Kb2 {[%emt 0:00:48]} a5 {[%emt 0:00:35]} 30. f5 {[%emt 0:00:38]} Qc7 {[%emt 0:01:00]} 31. Nxb5 {[%emt 0:03:34]} Qxe5+ {[%emt 0:00:23]} 32. Qxe5 {[%emt 0:00:09]} Rxe5 {[%emt 0:00:00]} 33. Nd6 {[%emt 0:00:46]} Rf8 {[%emt 0:00:58]} 34. Re2 {[%emt 0:01:38]} Re7 {[%emt 0:00:47]} 35. Rxd5 {[%emt 0:00:33]} Rd8 {[%emt 0:00:23]} 36. Rd4 {[%emt 0:00:10]} Red7 {[%emt 0:00:10]} 37. Rdxe4 {[%emt 0:00:11]} Rxd6 {[%emt 0:00:02]} 38. Re8+ {[%emt 0:00:08]} Rxe8 {[%emt 0:00:13]} 39. Rxe8# {[%emt 0:00:07]} 1-0

[Event "FIDE World Cup O12-A 2024"]
[Site "Batumi"]
[Date "2024.06.28"]
[Round "6.8"]
[White "Kozhedub, Ivan"]
[Black "Kristesiashvili, Andria"]
[Result "1-0"]
[ECO "B26"]
[WhiteElo "1778"]
[BlackElo "1728"]
[Annotator "NA RC"]
[PlyCount "143"]
[EventDate "2024.06.23"]
[EventType "swiss"]
[EventCountry "GEO"]
[SourceTitle "playchess.com"]
[Source "ChessBase"]
[SourceQuality "1"]
[TimeControl "5400+30"]

1. e4 {[%emt 0:00:02]} c5 {[%emt 0:00:04]} 2. Nc3 {[%emt 0:00:02]} Nc6 {[%emt 0:00:05]} 3. g3 {[%emt 0:00:04]} g6 {[%emt 0:00:04]} 4. Bg2 {[%emt 0:00:03]} Bg7 {[%emt 0:00:04]} 5. d3 {[%emt 0:00:04]} d6 {[%emt 0:00:04]} 6. Be3 {[%emt 0:00:12]} Nf6 {[%emt 0:00:06]} 7. h3 {[%emt 0:00:05]} O-O {[%emt 0:00:11]} 8. Nge2 {[%emt 0:00:05]} Rb8 {[%emt 0:00:09]} 9. f4 {[%emt 0:00:09]} e6 {[%emt 0:00:16]} 10. O-O {[%emt 0:00:11]} b5 {[%emt 0:00:15]} 11. e5 {[%emt 0:00:05]} Nd5 {[%emt 0:00:04]} 12. Nxd5 {[%emt 0:00:08]} exd5 {[%emt 0:00:06]} 13. Bxd5 {[%emt 0:02:12]} Nd4 {[%emt 0:02:21]} 14. Bg2 {[%emt 0:06:34]} dxe5 {[%emt 0:02:28]} 15. c3 {[%emt 0:00:51]} Ne6 {[%emt 0:11:05]} 16. Qd2 {[%emt 0:10:10]} Bb7 {[%emt 0:03:44]} 17. f5 {[%emt 0:05:26]} Bxg2 {[%emt 0:00:46]} 18. Kxg2 {[%emt 0:00:03]} gxf5 {[%emt 0:00:27]} 19. Rxf5 {[%emt 0:00:15]} Qd5+ {[%emt 0:00:26]} 20. Kh2 {[%emt 0:00:09]} Rbd8 {[%emt 0:00:32]} 21. Rd1 {[%emt 0:02:00]} c4 {[%emt 0:30:49]} 22. d4 {[%emt 0:11:02]} Qe4 {[%emt 0:01:15]} 23. g4 {[%emt 0:02:25]} exd4 {[%emt 0:01:53]} 24. cxd4 {[%emt 0:00:06]} Rfe8 {[%emt 0:02:18]} 25. Ng3 {[%emt 0:00:56]} Qb7 {[%emt 0:00:16]} 26. Qf2 {[%emt 0:01:08]} Rd5 {[%emt 0:02:35]} 27. Rf1 {[%emt 0:04:20]} Re7 {[%emt 0:00:19]} 28. Ne2 {[%emt 0:29:02]} b4 {[%emt 0:04:42]} 29. Qh4 {[%emt 0:03:05]} Rdd7 {[%emt 0:09:27]} 30. Bh6 {[%emt 0:06:38]} Qb8+ {[%emt 0:19:06]} 31. Ng3 {[%emt 0:05:29]} Nxd4 {[%emt 0:04:07]} 32. R5f2 {[%emt 0:07:15]} Ne2 {[%emt 0:01:18]} 33. Bxg7 {[%emt 0:05:05]} Qxg3+ {[%emt 0:00:17]} 34. Qxg3 {[%emt 0:00:07]} Nxg3 {[%emt 0:00:06]} 35. Kxg3 {[%emt 0:00:24]} Kxg7 {[%emt 0:00:05]} 36. Rc1 {[%emt 0:00:34]} Rd4 {[%emt 0:00:28]} 37. Rf4 {[%emt 0:00:30]} Re3+ {[%emt 0:02:39]} 38. Kf2 {[%emt 0:00:06]} Ree4 {[%emt 0:00:19]} 39. Rxe4 {[%emt 0:00:10]} Rxe4 {[%emt 0:00:04]} 40. Kf3 {[%emt 0:00:04]} f5 {[%emt 0:00:21]} 41. Rd1 {[%emt 0:02:22]} Kf6 {[%emt 0:00:41]} 42. Rd8 {[%emt 0:01:14]} c3 {[%emt 0:00:47]} 43. bxc3 {[%emt 0:00:21]} bxc3 {[%emt 0:00:21]} 44. Rc8 {[%emt 0:00:04]} Ra4 {[%emt 0:00:23]} 45. Rxc3 {[%emt 0:00:22]} Rxa2 {[%emt 0:00:10]} 46. Rc6+ {[%emt 0:00:55]} Kg5 {[%emt 0:01:03]} 47. Rc5 {[%emt 0:00:06]} Ra3+ {[%emt 0:00:15]} 48. Kg2 {[%emt 0:00:09]} a5 {[%emt 0:01:57]} 49. Rxf5+ {[%emt 0:00:06]} Kg6 {[%emt 0:00:06]} 50. Rb5 {[%emt 0:00:05]} a4 {[%emt 0:00:37]} 51. Ra5 {[%emt 0:00:17]} Ra2+ {[%emt 0:00:09]} 52. Kg3 {[%emt 0:00:08]} a3 {[%emt 0:00:05]} 53. Kh4 {[%emt 0:00:02]} Ra1 {[%emt 0:00:14]} 54. Ra6+ {[%emt 0:00:06]} Kg7 {[%emt 0:00:27]} 55. Kg5 {[%emt 0:00:19]} a2 {[%emt 0:00:18]} 56. Ra7+ {[%emt 0:00:16]} Kf8 {[%emt 0:00:53]} 57. h4 {[%emt 0:00:22]} h6+ {[%emt 0:01:28]} 58. Kxh6 {[%emt 0:00:12]} Rh1 {[%emt 0:00:05]} 59. Rxa2 {[%emt 0:00:04]} Rxh4+ {[%emt 0:00:12]} 60. Kg5 {[%emt 0:00:04]} Rh1 {[%emt 0:00:06]} 61. Kg6 {[%emt 0:00:07]} Rb1 {[%emt 0:00:19]} 62. Ra8+ {[%emt 0:00:13]} Ke7 {[%emt 0:00:13]} 63. g5 {[%emt 0:00:13]} Rb6+ {[%emt 0:01:05]} 64. Kg7 {[%emt 0:00:09]} Ke6 {[%emt 0:00:11]} 65. g6 {[%emt 0:00:48]} Rb7+ {[%emt 0:00:54]} 66. Kf8 {[%emt 0:00:36]} Kf6 {[%emt 0:00:17]} 67. Ra6+ {[%emt 0:00:18]} Kg5 {[%emt 0:00:06]} 68. g7 {[%emt 0:00:29]} Rb8+ {[%emt 0:00:17]} 69. Kf7 {[%emt 0:00:09]} Rb7+ {[%emt 0:00:04]} 70. Kg8 {[%emt 0:00:07]} Rb8+ {[%emt 0:00:18]} 71. Kh7 {[%emt 0:00:06]} Rb7 {[%emt 0:00:05]} 72. Kh8 {[%emt 0:00:03]} 1-0

[Event "FIDE World Cup O12-A 2024"]
[Site "Batumi"]
[Date "2024.06.28"]
[Round "6.9"]
[White "Berdashkevich, Makar"]
[Black "Li, Yiheng"]
[Result "1/2-1/2"]
[ECO "B55"]
[WhiteElo "1650"]
[BlackElo "1886"]
[Annotator "NA RC"]
[PlyCount "104"]
[EventDate "2024.06.23"]
[EventType "swiss"]
[EventCountry "GEO"]
[SourceTitle "playchess.com"]
[Source "ChessBase"]
[SourceQuality "1"]
[TimeControl "5400+30"]

1. e4 {[%emt 0:00:02]} c5 {[%emt 0:00:03]} 2. Nf3 {[%emt 0:00:08]} d6 {[%emt 0:00:03]} 3. d4 {[%emt 0:00:14]} cxd4 {[%emt 0:00:03]} 4. Nxd4 {[%emt 0:00:05]} Nf6 {[%emt 0:00:07]} 5. f3 {[%emt 0:00:04]} Nc6 {[%emt 0:00:03]} 6. c4 {[%emt 0:00:20]} Qb6 {[%emt 0:00:05]} 7. Nc2 {[%emt 0:10:44]} g6 {[%emt 0:00:05] 7...g6 was played by the boomers.} 8. Nc3 {[%emt 0:00:35]} Bg7 {[%emt 0:00:07]} 9. Rb1 {[%emt 0:03:50]} Ng4 {[%emt 0:00:14] B55: Sicilian: 2...d6 3 d4 cxd4 4 Nxd4 Nf6 5 f3.} 10. Qd2 {[%emt 0:17:00]} Bh6 {[%emt 0:00:16]} 11. Qe2 {[%emt 0:00:55]} Bxc1 {[%emt 0:00:16]} 12. Rxc1 {[%emt 0:00:41]} Nf6 {[%emt 0:00:31]} 13. Qd2 {[%emt 0:02:55]} O-O {[%emt 0:01:37]} 14. Ne3 $146 {[%emt 0:03:25]} ({Predecessor:} 14. Be2 e6 15. Na4 Qc7 16. O-O Rd8 17. Nc3 Qe7 18. Rfd1 b6 19. f4 Bb7 20. Qe3 {1-0 Santos Ruiz,M (2597)-Vasquez Schroder,R (2500) Menorca op 1st 2022 (4)}) 14... Be6 {[%emt 0:02:07]} 15. Bd3 {[%emt 0:05:45]} Rfc8 {[%emt 0:06:04]} 16. O-O {[%emt 0:05:49]} Ne5 {[%emt 0:08:49]} 17. b3 {[%emt 0:04:47]} Qd4 {[%emt 0:03:54]} 18. Rfd1 {[%emt 0:12:29]} a6 {[%emt 0:02:45]} 19. Bf1 {[%emt 0:02:59]} Qxd2 {[%emt 0:00:53]} 20. Rxd2 {[%emt 0:00:05]} g5 {[%emt 0:00:58]} 21. Be2 {[%emt 0:01:44]} Rab8 {[%emt 0:11:15]} 22. Rdd1 {[%emt 0:01:13]} Bd7 {[%emt 0:03:11]} 23. Ned5 $14 {[%emt 0:02:20]} Nxd5 {[%emt 0:00:47]} 24. Nxd5 {[%emt 0:00:26]} Kf8 {[%emt 0:01:39]} 25. Kf2 {[%emt 0:06:40]} e6 {[%emt 0:06:12]} 26. Ne3 {[%emt 0:01:19]} Ke7 {[%emt 0:00:09]} 27. Rd2 {[%emt 0:01:25]} b5 {[%emt 0:02:07]} 28. Rcd1 {[%emt 0:01:04]} bxc4 {[%emt 0:02:23]} 29. Bxc4 {[%emt 0:15:57]} Rb6 {[%emt 0:00:31]} 30. g3 {[%emt 0:00:00]} h6 {[%emt 0:07:21]} 31. f4 {[%emt 0:00:00]} Ng6 {[%emt 0:01:24]} 32. e5 {[%emt 0:00:00]} gxf4 {[%emt 0:06:22]} 33. gxf4 {[%emt 0:00:00]} Nxf4 {[%emt 0:00:44]} 34. Rxd6 {[%emt 0:00:00]} Rxd6 {[%emt 0:00:19]} 35. Rxd6 {[%emt 0:00:00]} a5 {[%emt 0:01:43]} 36. Ng4 {[%emt 0:00:25]} Ng6 {[%emt 0:01:12]} 37. Ra6 {[%emt 0:01:45]} Rc5 {[%emt 0:10:42]} 38. Nxh6 {[%emt 0:01:46]} Rxe5 {[%emt 0:00:39]} 39. Ng4 {[%emt 0:00:24]} Rg5 {[%emt 0:02:59]} 40. Ne3 {[%emt 0:00:31]} Rc5 {[%emt 0:02:04]} 41. Be2 {[%emt 0:00:36]} Nf4 {[%emt 0:01:55]} 42. Ra7 {[%emt 0:00:29]} Nxe2 {[%emt 0:00:26]} 43. Kxe2 {[%emt 0:00:06]} Rh5 {[%emt 0:01:02]} 44. Nc4 {[%emt 0:00:27]} Rxh2+ {[%emt 0:00:17]} 45. Kd3 {[%emt 0:00:24]} Kd8 {[%emt 0:07:43]} 46. Rxa5 {[%emt 0:00:40]} f6 {[%emt 0:00:50]} 47. a4 {[%emt 0:00:50]} Rh3+ {[%emt 0:00:30]} 48. Kc2 {[%emt 0:00:16]} e5 {[%emt 0:00:29]} 49. Nxe5 {[%emt 0:00:48]} fxe5 {[%emt 0:00:47]} 50. Rxe5 {[%emt 0:00:03]} Kc7 {[%emt 0:00:24]} 51. Rc5+ {[%emt 0:01:30]} Kb6 {[%emt 0:00:05]} 52. Rc3 {[%emt 0:00:00]} Rxc3+ {[%emt 0:00:05]} 1/2-1/2

[Event "FIDE World Cup O12-A 2024"]
[Site "Batumi"]
[Date "2024.06.28"]
[Round "6.11"]
[White "Yang, Maxwell"]
[Black "Tavberidze, Alexandre"]
[Result "1-0"]
[ECO "D90"]
[WhiteElo "1979"]
[BlackElo "1529"]
[Annotator "NA RC"]
[PlyCount "87"]
[EventDate "2024.06.23"]
[EventType "swiss"]
[EventCountry "GEO"]
[SourceTitle "playchess.com"]
[Source "ChessBase"]
[SourceQuality "1"]
[TimeControl "5400+30"]

1. d4 {[%emt 0:00:02]} d5 {[%emt 0:00:04]} 2. c4 {[%emt 0:00:04]} c6 {[%emt 0:00:03]} 3. cxd5 {[%emt 0:00:07]} cxd5 {[%emt 0:00:04]} 4. Bf4 {[%emt 0:00:05]} Nc6 {[%emt 0:00:07]} 5. e3 {[%emt 0:00:04]} Nf6 {[%emt 0:00:08]} 6. Nc3 {[%emt 0:00:06]} a6 {[%emt 0:03:59]} 7. Bd3 {[%emt 0:01:03]} g6 {[%emt 0:01:05]} 8. Rc1 {[%emt 0:00:17]} Bg7 {[%emt 0:02:10]} 9. Nf3 {[%emt 0:00:48]} O-O {[%emt 0:01:27]} 10. O-O {[%emt 0:00:15]} Bg4 {[%emt 0:07:19]} 11. a3 {[%emt 0:02:17]} Re8 {[%emt 0:03:22]} 12. Be2 {[%emt 0:08:07]} e6 {[%emt 0:03:33]} 13. Ne5 {[%emt 0:03:03]} Bxe2 {[%emt 0:00:50]} 14. Nxe2 {[%emt 0:01:43]} Nxe5 {[%emt 0:01:31]} 15. Bxe5 {[%emt 0:00:07]} Ne4 {[%emt 0:01:54]} 16. f3 {[%emt 0:03:45]} Nd6 {[%emt 0:01:17]} 17. Bxd6 {[%emt 0:01:59]} Qxd6 {[%emt 0:00:22]} 18. Qb3 {[%emt 0:00:11]} b5 {[%emt 0:03:01]} 19. Rc5 {[%emt 0:01:13]} Rac8 {[%emt 0:01:29]} 20. Rfc1 {[%emt 0:00:10]} Qb8 {[%emt 0:04:44]} 21. Qc3 {[%emt 0:07:45]} Rxc5 {[%emt 0:02:01]} 22. Qxc5 {[%emt 0:00:06]} Bf8 {[%emt 0:00:35]} 23. Qc6 {[%emt 0:01:57]} Qa8 {[%emt 0:01:06]} (23... b4 $11) 24. Kf2 {[%emt 0:12:36]} Qxc6 {[%emt 0:04:22]} 25. Rxc6 {[%emt 0:00:18]} Ra8 {[%emt 0:00:05]} 26. Nc1 {[%emt 0:00:17]} a5 {[%emt 0:01:16]} 27. Ke2 {[%emt 0:02:46]} b4 {[%emt 0:01:39]} 28. a4 {[%emt 0:00:19]} Be7 {[%emt 0:00:38]} 29. Nb3 {[%emt 0:00:11]} Kf8 {[%emt 0:00:56]} 30. Kd3 {[%emt 0:00:22]} ({White should try} 30. e4) 30... Ke8 {[%emt 0:00:37] [#]} 31. Rb6 {[%emt 0:01:53]} (31. e4 $142 $1) 31... Ra7 {[%emt 0:04:49]} 32. Rb5 {[%emt 0:01:33]} Bd8 {[%emt 0:00:09]} 33. Nc5 {[%emt 0:00:51]} Bc7 {[%emt 0:01:35]} 34. h3 {[%emt 0:00:52]} Ke7 {[%emt 0:03:39]} 35. Nb3 {[%emt 0:01:06]} f6 {[%emt 0:01:58]} (35... h5 $14) 36. Rc5 {[%emt 0:04:30]} Kd6 {[%emt 0:02:17]} 37. e4 {[%emt 0:04:48]} h5 $16 {[%emt 0:05:16]} 38. Rc1 {[%emt 0:15:23]} Ra8 {[%emt 0:05:52]} 39. Nc5 {[%emt 0:01:19]} Bb6 {[%emt 0:00:56]} 40. Nxe6 {[%emt 0:00:48]} Ba7 {[%emt 0:02:23]} 41. Nc7 {[%emt 0:00:15]} Rb8 {[%emt 0:02:58]} 42. Nb5+ {[%emt 0:01:25]} Rxb5 {[%emt 0:00:50]} 43. axb5 {[%emt 0:00:06]} dxe4+ {[%emt 0:02:38]} 44. fxe4 {[%emt 0:25:38]} 1-0

[Event "FIDE World Cup O12-A 2024"]
[Site "Batumi"]
[Date "2024.06.28"]
[Round "6.12"]
[White "Todua, Andria"]
[Black "Lee, Daniel Joshua"]
[Result "1-0"]
[ECO "C47"]
[WhiteElo "1599"]
[BlackElo "1717"]
[Annotator "NA RC"]
[PlyCount "135"]
[EventDate "2024.06.23"]
[EventType "swiss"]
[EventCountry "GEO"]
[SourceTitle "playchess.com"]
[Source "ChessBase"]
[SourceQuality "1"]
[TimeControl "5400+30"]

1. e4 {[%emt 0:00:03]} e5 {[%emt 0:00:04]} 2. Nf3 {[%emt 0:00:04]} Nc6 {[%emt 0:00:07]} 3. Nc3 {[%emt 0:00:19]} Nf6 {[%emt 0:00:11]} 4. Be2 {[%emt 0:00:04]} Bc5 {[%emt 0:01:15]} 5. Nxe5 {[%emt 0:00:09]} Nxe5 {[%emt 0:00:31]} 6. d4 {[%emt 0:00:04]} Bd6 {[%emt 0:00:42]} 7. dxe5 {[%emt 0:00:07]} Bxe5 {[%emt 0:00:05]} 8. Nb5 {[%emt 0:00:20]} O-O {[%emt 0:00:50]} 9. f4 {[%emt 0:05:48]} Nxe4 {[%emt 0:02:17]} 10. Qd5 {[%emt 0:00:03]} Qh4+ {[%emt 0:01:11]} 11. g3 {[%emt 0:00:02]} Nxg3 {[%emt 0:15:18]} 12. hxg3 {[%emt 0:00:02]} Qxg3+ {[%emt 0:00:12]} 13. Kd1 {[%emt 0:00:02]} c6 {[%emt 0:08:24]} 14. Qe4 {[%emt 0:02:15]} f5 {[%emt 0:02:57]} 15. Qxe5 {[%emt 0:00:44]} Qg2 {[%emt 0:06:14]} 16. Re1 {[%emt 0:00:11]} cxb5 {[%emt 0:00:59]} 17. b3 {[%emt 0:00:25]} d6 {[%emt 0:04:16]} 18. Qd4 {[%emt 0:00:16]} Re8 {[%emt 0:09:46]} 19. Bc4+ {[%emt 0:01:59]} bxc4 {[%emt 0:06:24]} 20. Rxe8+ {[%emt 0:00:05]} Kf7 {[%emt 0:00:11]} 21. Qe3 {[%emt 0:02:01]} Qh1+ {[%emt 0:03:15]} 22. Kd2 {[%emt 0:00:30]} c3+ {[%emt 0:00:12]} 23. Ke2 {[%emt 0:02:54]} Qg2+ {[%emt 0:02:06]} 24. Kd1 {[%emt 0:00:37]} Qh1+ {[%emt 0:10:11]} 25. Qe1 {[%emt 0:00:21]} Qd5+ {[%emt 0:00:28]} 26. Bd2 {[%emt 1:24:05]} Qxd2+ {[%emt 0:00:33]} 27. Qxd2 {[%emt 0:00:00]} cxd2 {[%emt 0:00:08]} 28. Re2 {[%emt 0:00:00]} Be6 {[%emt 0:01:22]} 29. Kxd2 {[%emt 0:00:00]} h6 {[%emt 0:04:09]} 30. Rg1 {[%emt 0:00:00]} Rg8 {[%emt 0:02:10]} 31. Reg2 {[%emt 0:00:00]} g6 {[%emt 0:01:15]} 32. Rh2 {[%emt 0:00:00]} Rh8 {[%emt 0:02:10]} 33. Rh3 {[%emt 0:00:00]} Kf6 {[%emt 0:02:26]} 34. c4 {[%emt 0:00:00]} h5 {[%emt 0:01:41]} 35. Ke2 {[%emt 0:00:00]} d5 {[%emt 0:05:43]} 36. Rhg3 {[%emt 0:00:00]} Rg8 {[%emt 0:00:31]} 37. c5 {[%emt 0:00:00]} Bf7 {[%emt 0:03:08]} 38. Kf2 {[%emt 0:00:00]} Rc8 {[%emt 0:01:32]} 39. Rc3 {[%emt 0:00:00]} Rc6 {[%emt 0:03:11]} 40. b4 {[%emt 0:00:00]} b6 {[%emt 0:00:59]} 41. Rgc1 {[%emt 0:00:00]} b5 {[%emt 0:00:28]} 42. Ra3 {[%emt 0:00:00]} a6 {[%emt 0:00:19]} 43. Rg3 {[%emt 0:00:00]} Kg7 {[%emt 0:00:34]} 44. Kg2 {[%emt 0:00:00]} Kf6 {[%emt 0:00:15]} 45. Kh3 {[%emt 0:00:00]} Be8 {[%emt 0:00:59]} 46. Re3 {[%emt 0:00:00]} Bf7 {[%emt 0:01:00]} 47. Kh4 {[%emt 0:00:00]} Be6 {[%emt 0:00:15]} 48. Ra3 {[%emt 0:00:00]} Bc8 {[%emt 0:00:11]} 49. Rd1 {[%emt 0:00:00]} Be6 {[%emt 0:00:10]} 50. Rdd3 {[%emt 0:00:00]} Bf7 {[%emt 0:00:10]} 51. Rdc3 {[%emt 0:00:00]} Be6 {[%emt 0:00:41]} 52. Ra5 {[%emt 0:00:00]} Bd7 {[%emt 0:00:36]} 53. Rd3 {[%emt 0:00:00]} Be6 {[%emt 0:00:06]} 54. a4 {[%emt 0:00:00]} bxa4 {[%emt 0:00:04]} 55. Rxa4 {[%emt 0:00:00]} g5+ {[%emt 0:01:59]} 56. fxg5+ {[%emt 0:00:00]} Kg6 {[%emt 0:01:07]} 57. Rd4 {[%emt 0:00:00]} Bf7 {[%emt 0:00:18]} 58. Ra1 {[%emt 0:00:00]} Re6 {[%emt 0:00:21]} 59. Ra3 {[%emt 0:00:00]} Kg7 {[%emt 0:00:51]} 60. Rc3 {[%emt 0:00:00]} Rc6 {[%emt 0:00:15]} 61. Ra3 {[%emt 0:00:00]} Kg6 {[%emt 0:00:07]} 62. Ra5 {[%emt 0:00:00]} Be8 {[%emt 0:01:05]} 63. Rxd5 {[%emt 0:00:00]} f4 {[%emt 0:00:20]} 64. Rd6+ {[%emt 0:00:00]} Rxd6 {[%emt 0:00:33]} 65. cxd6 {[%emt 0:00:00]} f3 {[%emt 0:00:07]} 66. Kg3 {[%emt 0:00:00]} h4+ {[%emt 0:00:28]} 67. Kxf3 {[%emt 0:00:00]} h3 {[%emt 0:00:12]} 68. Ke4 {[%emt 0:21:00]} 1-0